bitfinex/quotes_BTCUSD_20230110
["timestamp","ask_amount","ask_price","bid_price","bid_amount"]
[1673319027693,0.60028879,17189.0,17185.0,0.66254851]
[1673319027694,0.001,17188.0,17185.0,0.66254851]
[1673319027942,0.001,17188.0,17186.0,1.730359]
[1673319028201,0.001,17188.0,17187.0,0.362259]
[1673319028473,0.001,17188.0,17187.0,0.78720132]
[1673319028743,0.001,17188.0,17187.0,1.66077921]
[1673319029035,0.001,17188.0,17187.0,1.6060474]
[1673319029309,0.001,17188.0,17187.0,2.22323988]
[1673319029562,0.2,17192.0,17187.0,2.39768595]
[1673319029873,0.2,17192.0,17189.0,0.3695]
[1673319030125,0.2,17192.0,17189.0,1.0325926]
[1673319030383,0.2,17192.0,17190.0,0.1695]
[1673319031202,0.37365999,17193.0,17190.0,0.1695]
[1673319031459,0.2,17193.0,17190.0,0.83254813]
[1673319032012,0.2,17193.0,17190.0,0.59487024]
[1673319032261,0.2,17193.0,17190.0,0.1695]
[1673319032780,0.001,17192.0,17190.0,0.1695]
[1673319033801,0.37365999,17193.0,17190.0,0.1695]
[1673319034323,0.001,17192.0,17190.0,0.1695]
[1673319035352,0.37465999,17193.0,17190.0,0.1695]
[1673319035881,0.001,17192.0,17190.0,0.1695]
[1673319036666,0.37354202,17193.0,17190.0,0.1695]
[1673319036927,0.37454202,17193.0,17190.0,0.1695]
[1673319037214,0.37354202,17193.0,17190.0,0.1695]
[1673319037953,0.19988203,17193.0,17190.0,0.1695]
[1673319038212,0.001,17192.0,17190.0,0.59495126]
[1673319038476,0.19988203,17193.0,17190.0,0.1695]
[1673319038745,0.19988203,17193.0,17190.0,0.65825659]
[1673319039008,0.19988203,17193.0,17190.0,0.1695]
[1673319039257,0.19988203,17193.0,17190.0,0.2325]
[1673319042049,0.19988203,17193.0,17190.0,0.20820815]
[1673319044678,0.362259,17192.0,17190.0,0.20820815]
[1673319044931,0.19988203,17193.0,17190.0,0.19080606]
[1673319045200,0.19988203,17193.0,17190.0,0.17340397]
[1673319045509,0.19988203,17193.0,17190.0,0.10404677]
[1673319045975,0.19988203,17193.0,17190.0,0.16704677]
[1673319046762,0.19988203,17193.0,17190.0,0.08055693]
[1673319047015,0.19988203,17193.0,17190.0,0.02173727]
[1673319047542,0.19988203,17193.0,17190.0,0.08473727]
[1673319050583,0.362259,17192.0,17190.0,0.08473727]
[1673319050838,0.62651083,17193.0,17190.0,0.08473727]
[1673319051089,0.19988203,17193.0,17190.0,0.08473727]
[1673319051342,0.19988203,17193.0,17190.0,0.02173727]
[1673319051598,0.19988203,17193.0,17190.0,0.08473727]
[1673319051849,0.62651083,17193.0,17190.0,0.02173727]
[1673319052106,0.62651083,17193.0,17190.0,0.08473727]
[1673319053623,0.5952288,17192.0,17190.0,0.063]
[1673319053881,0.362259,17191.0,17190.0,0.063]
[1673319054134,0.562259,17191.0,17190.0,0.063]
[1673319054405,0.562259,17191.0,17187.0,0.43385906]
[1673319054645,0.2,17190.0,17187.0,0.0085]
[1673319055892,0.2,17190.0,17187.0,0.0715]
[1673319056390,0.2,17190.0,17187.0,0.2715]
[1673319056876,0.2,17190.0,17187.0,0.0715]
[1673319062735,0.37365999,17190.0,17187.0,0.0715]
[1673319063245,0.2,17190.0,17187.0,0.30917789]
[1673319063753,0.2,17190.0,17187.0,0.0715]
[1673319064760,0.2,17190.0,17187.0,0.67069141]
[1673319065549,0.2,17191.0,17187.0,0.93236052]
[1673319065852,0.2,17191.0,17187.0,1.17003841]
[1673319066617,0.37365999,17191.0,17188.0,0.17405929]
[1673319066877,0.2,17191.0,17188.0,0.83700037]
[1673319067660,0.2,17191.0,17188.0,0.59932248]
[1673319068186,0.201,17191.0,17188.0,0.59932248]
[1673319068740,0.37465999,17191.0,17188.0,0.17405929]
[1673319069526,0.37465999,17191.0,17187.0,1.03903446]
[1673319069822,1.06186708,17191.0,17187.0,0.6137284]
[1673319070078,1.06186708,17191.0,17187.0,1.27653657]
[1673319070385,1.06086708,17191.0,17187.0,0.58973718]
[1673319070636,1.06086708,17191.0,17187.0,0.65273718]
[1673319070884,1.06086708,17191.0,17187.0,1.33944752]
[1673319071176,0.63423828,17191.0,17187.0,1.33944752]
[1673319072450,0.37365999,17191.0,17187.0,1.33944752]
[1673319075005,0.37365999,17191.0,17187.0,1.68833967]
[1673319075245,0.37365999,17191.0,17188.0,0.17405929]
[1673319075487,0.37365999,17191.0,17188.0,0.83687023]
[1673319075744,0.37365999,17191.0,17188.0,0.59928032]
[1673319075987,0.37365999,17191.0,17188.0,0.17405929]
[1673319076236,0.37365999,17191.0,17187.0,1.45084158]
[1673319076495,0.37365999,17191.0,17187.0,1.27662732]
[1673319076750,0.37465999,17191.0,17187.0,1.27662732]
[1673319077516,0.37365999,17191.0,17187.0,1.27662732]
[1673319077753,0.37365999,17191.0,17188.0,0.17405929]
[1673319078025,0.37365999,17191.0,17188.0,0.83682524]
[1673319078270,0.37365999,17191.0,17188.0,0.59914735]
[1673319078812,0.37365999,17191.0,17188.0,0.17405929]
[1673319079306,0.37365999,17191.0,17188.0,0.59923392]
[1673319079565,0.001,17191.0,17188.0,0.86090303]
[1673319081180,0.001,17191.0,17189.0,0.2]
[1673319081746,0.001,17191.0,17190.0,0.1695]
[1673319082037,0.001,17191.0,17190.0,0.95702199]
[1673319082301,0.90043828,17193.0,17190.0,0.3695]
[1673319082302,0.43423828,17193.0,17190.0,0.3695]
[1673319082565,0.001,17191.0,17190.0,1.03240314]
[1673319082861,0.43423828,17193.0,17190.0,0.3695]
[1673319083123,0.001,17191.0,17190.0,1.03266637]
[1673319083413,0.43423828,17193.0,17190.0,0.3695]
[1673319083671,0.4351524,17193.0,17190.0,1.03266536]
[1673319083957,0.4351524,17193.0,17190.0,0.79498747]
[1673319084516,0.17465999,17193.0,17190.0,0.79498747]
[1673319084793,0.17465999,17193.0,17190.0,0.79494166]
[1673319085054,0.17465999,17193.0,17190.0,0.3695]
[1673319087105,0.17465999,17193.0,17190.0,0.54355929]
[1673319087374,0.17465999,17193.0,17190.0,0.79489622]
[1673319087613,0.17465999,17193.0,17190.0,0.3695]
[1673319087876,0.17365999,17193.0,17190.0,0.3695]
[1673319088122,0.17365999,17193.0,17190.0,0.4325]
[1673319088384,0.17365999,17193.0,17190.0,0.79498361]
[1673319088644,0.17365999,17193.0,17190.0,0.3695]
[1673319088898,0.17365999,17193.0,17190.0,0.54355929]
[1673319089208,0.17365999,17193.0,17190.0,0.96899829]
[1673319089435,0.18563113,17194.0,17192.0,0.339]
[1673319089697,0.18563113,17194.0,17193.0,0.531759]
[1673319089959,0.01197114,17194.0,17193.0,0.1695]
[1673319090746,0.01297114,17194.0,17193.0,0.1785]
[1673319091933,0.01197114,17194.0,17193.0,0.1695]
[1673319092605,0.01297114,17194.0,17193.0,0.1695]
[1673319092847,0.01197114,17194.0,17193.0,0.1695]
[1673319093256,0.01297114,17194.0,17193.0,0.1695]
[1673319094028,0.01297114,17194.0,17193.0,0.3695]
[1673319095555,0.01197114,17194.0,17193.0,0.178]
[1673319095857,0.01197114,17194.0,17193.0,0.241]
[1673319096919,0.01197114,17194.0,17193.0,0.441]
[1673319097688,0.01197114,17194.0,17193.0,0.241]
[1673319100085,0.01197114,17194.0,17193.0,0.441]
[1673319100387,0.01197114,17194.0,17193.0,0.241]
[1673319100905,0.01197114,17194.0,17193.0,0.441]
[1673319101148,0.01197114,17194.0,17193.0,0.241]
[1673319102921,0.01197114,17194.0,17193.0,0.441]
[1673319103432,0.01197114,17194.0,17193.0,0.803259]
[1673319103934,0.01197114,17194.0,17193.0,0.441]
[1673319105733,0.01186318,17194.0,17193.0,0.441]
[1673319110745,0.01186318,17194.0,17193.0,0.241]
[1673319111293,0.01186318,17194.0,17193.0,0.0715]
[1673319115682,0.01186318,17194.0,17193.0,0.2715]
[1673319116174,0.01186318,17194.0,17193.0,0.0715]
[1673319117412,0.01186318,17194.0,17193.0,0.633759]
[1673319117933,0.01186318,17194.0,17193.0,1.633759]
[1673319118423,0.01186318,17194.0,17193.0,1.2715]
[1673319118910,0.01186318,17194.0,17193.0,1.933759]
[1673319119158,0.01186318,17194.0,17193.0,2.3603878]
[1673319119406,0.01186318,17194.0,17193.0,1.633759]
[1673319119655,0.01186318,17194.0,17193.0,1.2715]
[1673319119907,0.01186318,17194.0,17193.0,1.8981288]
[1673319120169,0.01186318,17194.0,17193.0,2.43444709]
[1673319121494,0.01186318,17194.0,17193.0,2.9961162]
[1673319121687,0.01186318,17194.0,17193.0,2.73444709]
[1673319121936,0.01186318,17194.0,17193.0,3.35110056]
[1673319122180,0.01186318,17194.0,17193.0,2.6961162]
[1673319122425,0.01186318,17194.0,17193.0,3.05110104]
[1673319122675,0.01186318,17194.0,17193.0,2.6961162]
[1673319122925,0.01186318,17194.0,17193.0,3.64601878]
[1673319123177,0.01186318,17194.0,17193.0,4.46441093]
[1673319123422,0.01186318,17194.0,17193.0,4.11557953]
[1673319123923,0.01186318,17194.0,17193.0,4.29035164]
[1673319124682,0.01186318,17194.0,17193.0,4.22735164]
[1673319124932,0.01186318,17194.0,17193.0,4.36735164]
[1673319125441,0.01186318,17194.0,17193.0,4.96735164]
[1673319126198,0.01186318,17194.0,17193.0,5.14179772]
[1673319126447,0.01175895,17194.0,17193.0,5.14179772]
[1673319126948,0.01175895,17194.0,17193.0,5.4030838]
[1673319127200,0.01175895,17194.0,17193.0,4.96696861]
[1673319127451,0.01175895,17194.0,17193.0,5.14179772]
[1673319127777,0.01175895,17194.0,17193.0,5.4030833]
[1673319127966,0.01175895,17194.0,17193.0,5.14179772]
[1673319128996,0.01175895,17194.0,17193.0,4.79290557]
[1673319129487,0.00295807,17194.0,17193.0,4.35679038]
[1673319129732,0.00295807,17194.0,17193.0,5.04812861]
[1673319130232,0.00295807,17194.0,17193.0,5.5721261]
[1673319131764,0.00295807,17194.0,17193.0,4.69429038]
[1673319131765,0.00050112,17194.0,17193.0,4.69429038]
[1673319132014,0.00953884,17195.0,17194.0,0.2]
[1673319132295,0.00953884,17195.0,17194.0,2.75419038]
[1673319132537,0.00953884,17195.0,17194.0,3.8006924]
[1673319133576,0.00953884,17195.0,17194.0,3.27818787]
[1673319133856,0.00953884,17195.0,17194.0,3.8006924]
[1673319134142,0.00953884,17195.0,17194.0,3.9396924]
[1673319134910,0.00953884,17195.0,17194.0,3.41718787]
[1673319135159,0.00953884,17195.0,17194.0,2.89319038]
[1673319137439,0.00953884,17195.0,17194.0,3.32810574]
[1673319137674,2.449e-05,17198.0,17195.0,0.2]
[1673319137916,0.00448076,17200.0,17197.0,0.1695]
[1673319138163,0.00448076,17200.0,17198.0,0.23767789]
[1673319138661,0.00439513,17200.0,17197.0,0.1695]
[1673319138908,0.00439513,17200.0,17197.0,0.40717789]
[1673319139153,0.00439513,17200.0,17197.0,0.3045]
[1673319139395,0.00439513,17200.0,17197.0,0.1695]
[1673319140645,0.00439513,17200.0,17198.0,0.062]
[1673319140897,0.21169595,17201.0,17198.0,0.2]
[1673319141139,0.21169595,17201.0,17198.0,0.43767789]
[1673319141395,0.38029595,17201.0,17198.0,0.43767789]
[1673319141904,0.38029595,17201.0,17198.0,0.2]
[1673319142151,0.38029595,17201.0,17198.0,0.29967789]
[1673319142399,0.38029595,17201.0,17198.0,0.062]
[1673319143651,0.38029595,17201.0,17198.0,0.26188953]
[1673319144914,0.38029595,17201.0,17198.0,0.06188953]
[1673319146474,0.362259,17200.0,17198.0,0.06188953]
[1673319146774,0.38029595,17201.0,17198.0,0.06188953]
[1673319147508,0.38029595,17201.0,17198.0,0.2]
[1673319147767,0.38029595,17201.0,17198.0,0.262]
[1673319148064,0.98058474,17201.0,17196.0,0.60336565]
[1673319148284,0.3368,17199.0,17198.0,0.062]
[1673319148536,0.699252,17199.0,17198.0,0.062]
[1673319149296,0.899252,17199.0,17198.0,0.062]
[1673319149808,0.899252,17199.0,17195.0,1.99510828]
[1673319150079,0.1695,17197.0,17195.0,1.6]
[1673319150592,0.1695,17197.0,17195.0,1.99508179]
[1673319150841,0.1695,17197.0,17196.0,0.362152]
[1673319151356,0.1695,17197.0,17195.0,1.6]
[1673319151599,0.1695,17197.0,17195.0,2.10339036]
[1673319151879,0.1695,17197.0,17196.0,0.362152]
[1673319152380,0.1695,17197.0,17195.0,0.91397122]
[1673319152642,0.1681,17196.0,17194.0,0.17397122]
[1673319152897,0.1681,17196.0,17193.0,2.03492805]
[1673319153423,0.1681,17196.0,17193.0,1.77397122]
[1673319153673,0.1681,17196.0,17194.0,0.362152]
[1673319153946,0.1681,17196.0,17194.0,0.14]
[1673319154200,0.1681,17196.0,17193.0,2.03492805]
[1673319154475,0.1681,17196.0,17193.0,2.17492805]
[1673319155229,0.1681,17196.0,17193.0,1.77397122]
[1673319155487,0.1681,17196.0,17194.0,0.135]
[1673319155763,0.1681,17196.0,17193.0,1.77397122]
[1673319156000,0.1681,17196.0,17193.0,1.91397122]
[1673319156250,0.1681,17196.0,17193.0,1.77397122]
[1673319156513,0.5947288,17196.0,17193.0,0.6]
[1673319156766,0.5947288,17196.0,17194.0,0.135]
[1673319157035,0.1681,17196.0,17193.0,0.6]
[1673319157294,0.5947288,17196.0,17193.0,0.74]
[1673319157553,0.1681,17196.0,17193.0,0.6]
[1673319158596,0.1681,17196.0,17194.0,0.135]
[1673319159967,0.1681,17196.0,17193.0,0.6]
[1673319160220,0.1681,17196.0,17194.0,0.135]
[1673319161531,0.1681,17196.0,17193.0,0.6]
[1673319161807,0.1681,17196.0,17193.0,0.74]
[1673319162071,0.1681,17196.0,17193.0,0.6]
[1673319162330,0.1681,17196.0,17194.0,0.135]
[1673319162581,0.1681,17196.0,17193.0,0.6]
[1673319162833,0.1681,17196.0,17193.0,0.74]
[1673319163843,0.169,17194.0,17193.0,0.14]
[1673319164098,0.3375,17194.0,17193.0,0.14]
[1673319164630,0.699652,17194.0,17193.0,0.14]
[1673319164882,0.699652,17194.0,17191.0,0.6]
[1673319164883,0.899652,17194.0,17191.0,0.6]
[1673319165137,0.530352,17193.0,17191.0,0.6]
[1673319165392,0.1682,17193.0,17191.0,0.6]
[1673319166211,0.1682,17193.0,17191.0,0.662]
[1673319170793,0.362152,17192.0,17191.0,0.662]
[1673319171303,0.3682,17193.0,17192.0,0.00010329]
[1673319172332,0.3682,17193.0,17192.0,0.00410329]
[1673319172894,0.3682,17193.0,17192.0,0.00010329]
[1673319173434,0.3882,17193.0,17192.0,0.00210329]
[1673319174504,0.750352,17193.0,17192.0,0.00210329]
[1673319175297,0.750352,17193.0,17192.0,0.00175612]
[1673319175815,0.3882,17193.0,17192.0,0.00175612]
[1673319176069,0.750352,17193.0,17192.0,0.00175612]
[1673319176332,0.3882,17193.0,17192.0,0.00175612]
[1673319176637,0.750352,17193.0,17192.0,0.00175612]
[1673319179959,0.3882,17193.0,17192.0,0.00175612]
[1673319180735,0.750352,17193.0,17192.0,0.00175612]
[1673319181512,0.3882,17193.0,17192.0,0.00175612]
[1673319182279,0.1882,17193.0,17192.0,0.00175612]
[1673319183060,0.02,17193.0,17192.0,0.23943401]
[1673319183297,0.02,17193.0,17192.0,0.20175612]
[1673319183558,0.02,17193.0,17192.0,0.00175612]
[1673319184088,0.02,17193.0,17192.0,0.20175612]
[1673319184401,0.2,17195.0,17192.0,0.2]
[1673319184591,0.1681,17196.0,17194.0,0.6]
[1673319184847,0.1681,17196.0,17194.0,0.83767789]
[1673319185351,0.1681,17196.0,17194.0,0.6]
[1673319186118,0.008,17196.0,17194.0,0.602]
[1673319187193,0.2,17197.0,17194.0,0.6]
[1673319187460,0.18286531,17197.0,17196.0,0.6]
[1673319187976,0.14895925,17197.0,17196.0,0.6]
[1673319188240,0.51111125,17197.0,17196.0,0.6]
[1673319188506,0.14895925,17197.0,17196.0,0.6]
[1673319188751,0.51111125,17197.0,17196.0,0.6]
[1673319189000,0.52011125,17197.0,17196.0,0.602]
[1673319190569,0.50453271,17197.0,17196.0,0.602]
[1673319190849,0.46952359,17197.0,17196.0,0.602]
[1673319191079,0.371152,17197.0,17196.0,0.602]
[1673319193353,0.371152,17197.0,17196.0,0.002]
[1673319194638,0.371152,17197.0,17196.0,0.602]
[1673319197459,0.009,17197.0,17196.0,0.602]
[1673319198235,0.1785,17197.0,17196.0,0.602]
[1673319198549,0.16291116,17197.0,17196.0,0.602]
[1673319198996,0.16291116,17197.0,17196.0,0.6]
[1673319199256,0.16291116,17197.0,17196.0,0.603]
[1673319199765,0.16291116,17197.0,17196.0,0.606]
[1673319200274,0.01300119,17199.0,17196.0,0.95457436]
[1673319200527,1.14706573,17201.0,17198.0,0.6]
[1673319200785,0.60395812,17201.0,17200.0,0.6]
[1673319201067,0.17365999,17201.0,17200.0,0.83767789]
[1673319201321,0.362152,17201.0,17200.0,0.6]
[1673319202361,0.362152,17201.0,17198.0,1.11697099]
[1673319202599,0.96710847,17202.0,17200.0,0.071]
[1673319202854,0.362152,17201.0,17200.0,0.071]
[1673319203110,0.362152,17201.0,17198.0,0.94852008]
[1673319203376,0.362152,17200.0,17198.0,0.6]
[1673319203624,0.362152,17199.0,17198.0,0.74]
[1673319203887,0.59850847,17201.0,17198.0,0.6]
[1673319204140,0.17365999,17201.0,17198.0,0.6]
[1673319204398,0.362152,17200.0,17198.0,0.6]
[1673319204655,0.362152,17199.0,17198.0,0.6]
[1673319204908,1.2279066,17202.0,17198.0,0.6]
[1673319205159,0.54225999,17202.0,17198.0,1.18618637]
[1673319205414,0.362152,17201.0,17198.0,1.32818637]
[1673319205668,0.362152,17200.0,17198.0,0.6]
[1673319205927,1.2279066,17202.0,17198.0,0.742]
[1673319205928,0.362152,17199.0,17198.0,0.742]
[1673319206174,1.2279066,17202.0,17198.0,0.6]
[1673319206432,0.80305812,17202.0,17198.0,1.32824232]
[1673319206682,0.362152,17201.0,17198.0,1.18619928]
[1673319206948,0.362152,17200.0,17198.0,0.6]
[1673319207210,0.96710847,17202.0,17198.0,0.6]
[1673319207499,0.54225999,17202.0,17198.0,1.18619928]
[1673319207713,0.362152,17201.0,17198.0,1.32819928]
[1673319207965,0.362152,17200.0,17198.0,0.6]
[1673319208220,1.2279066,17202.0,17198.0,0.671]
[1673319208470,0.362152,17201.0,17198.0,1.18602445]
[1673319208720,0.362152,17200.0,17198.0,0.671]
[1673319208944,0.96710847,17202.0,17198.0,0.6]
[1673319209227,0.54225999,17202.0,17198.0,1.25736121]
[1673319209490,0.362152,17201.0,17198.0,0.90867789]
[1673319209755,0.362152,17200.0,17198.0,0.6]
[1673319210049,1.2279066,17202.0,17198.0,0.6]
[1673319210262,0.80305812,17202.0,17198.0,1.186098]
[1673319210518,0.362152,17201.0,17198.0,0.90867789]
[1673319210762,0.362152,17200.0,17198.0,0.6]
[1673319211005,0.362152,17199.0,17198.0,0.671]
[1673319211248,0.96710847,17202.0,17198.0,0.6]
[1673319211488,0.80305812,17202.0,17198.0,1.25706506]
[1673319211738,0.362152,17201.0,17198.0,0.83767789]
[1673319211994,0.362152,17200.0,17198.0,0.6]
[1673319212244,0.362152,17199.0,17198.0,0.6]
[1673319212495,1.2279066,17202.0,17198.0,0.6]
[1673319212754,0.80305812,17202.0,17198.0,1.18603403]
[1673319213011,0.80305812,17202.0,17198.0,0.83767789]
[1673319213012,0.362152,17201.0,17198.0,0.83767789]
[1673319213273,0.362152,17200.0,17198.0,0.671]
[1673319213530,0.362152,17199.0,17198.0,0.071]
[1673319213789,1.2279066,17202.0,17198.0,0.071]
[1673319213790,0.42484848,17201.0,17198.0,0.071]
[1673319214049,0.17365999,17201.0,17197.0,0.71895194]
[1673319214337,0.362152,17200.0,17198.0,0.071]
[1673319214556,0.17365999,17201.0,17198.0,0.071]
[1673319214863,0.17365999,17201.0,17198.0,0.142]
[1673319215176,0.362152,17200.0,17197.0,0.95662983]
[1673319215375,0.362152,17199.0,17198.0,0.071]
[1673319215634,0.2,17200.0,17198.0,0.071]
[1673319216145,0.2,17200.0,17197.0,0.71884954]
[1673319216397,0.2,17200.0,17198.0,0.071]
[1673319216655,0.2,17200.0,17197.0,0.71875472]
[1673319216917,0.2,17200.0,17198.0,0.071]
[1673319217174,0.2,17200.0,17197.0,0.71875463]
[1673319217437,0.2,17200.0,17197.0,0.5115]
[1673319218220,0.2,17200.0,17197.0,0.342]
[1673319218471,0.1695,17199.0,17197.0,0.142]
[1673319218734,0.362152,17198.0,17197.0,0.142]
[1673319219529,0.1695,17199.0,17197.0,0.142]
[1673319220093,0.1695,17199.0,17196.0,0.9202181]
[1673319220374,0.362152,17198.0,17197.0,0.142]
[1673319220593,0.362152,17198.0,17196.0,0.6]
[1673319220850,0.1695,17199.0,17197.0,0.142]
[1673319221360,0.1695,17199.0,17196.0,0.6]
[1673319221624,0.362152,17198.0,17196.0,0.74]
[1673319221884,0.1695,17199.0,17196.0,0.74]
[1673319222353,0.1695,17199.0,17196.0,0.6]
[1673319222638,0.1695,17199.0,17197.0,0.142]
[1673319222891,0.1695,17199.0,17196.0,0.6]
[1673319223146,0.34315999,17199.0,17196.0,0.74]
[1673319225537,0.60395812,17199.0,17196.0,0.74]
[1673319228320,0.34315999,17199.0,17196.0,0.74]
[1673319228619,0.362152,17198.0,17196.0,0.91397122]
[1673319228890,0.34315999,17199.0,17196.0,0.91397122]
[1673319229128,0.34315999,17199.0,17196.0,1.29035286]
[1673319229393,0.1695,17199.0,17196.0,1.38803075]
[1673319229637,0.34315999,17199.0,17196.0,1.29035286]
[1673319229885,0.34315999,17199.0,17196.0,1.15035286]
[1673319230139,0.34315999,17199.0,17196.0,1.29035286]
[1673319230775,0.34315999,17199.0,17196.0,0.91397122]
[1673319230922,0.60395812,17199.0,17196.0,0.74]
[1673319231177,0.60395812,17199.0,17196.0,0.6]
[1673319231939,0.60395812,17199.0,17196.0,0.742]
[1673319234286,0.60395812,17199.0,17196.0,0.91597122]
[1673319234812,0.362152,17198.0,17196.0,0.91597122]
[1673319235071,0.60395812,17199.0,17196.0,0.91597122]
[1673319235358,0.60395812,17199.0,17196.0,1.78369956]
[1673319235359,0.34315999,17199.0,17196.0,1.78369956]
[1673319235587,0.34315999,17199.0,17196.0,1.54602167]
[1673319235897,0.34315999,17199.0,17196.0,1.40402167]
[1673319236386,0.34315999,17199.0,17196.0,1.54602167]
[1673319237194,0.34315999,17199.0,17196.0,0.94602167]
[1673319237406,0.60395812,17199.0,17196.0,0.57692805]
[1673319237664,0.34315999,17199.0,17196.0,0.93663335]
[1673319237912,0.34315999,17199.0,17196.0,0.57692805]
[1673319238165,0.34315999,17199.0,17196.0,1.17692805]
[1673319238393,0.34315999,17199.0,17196.0,1.53692666]
[1673319238681,0.34315999,17199.0,17196.0,1.17692805]
[1673319239185,0.60395812,17199.0,17196.0,0.91597122]
[1673319240212,0.17365999,17198.0,17196.0,0.91597122]
[1673319240478,0.17365999,17198.0,17196.0,0.31597122]
[1673319241253,0.17365999,17198.0,17196.0,0.17397122]
[1673319241530,0.17365999,17198.0,17196.0,0.31597122]
[1673319242302,0.17365999,17198.0,17196.0,0.17397122]
[1673319242568,0.17365999,17198.0,17196.0,0.31597122]
[1673319242820,0.60395812,17199.0,17196.0,0.17397122]
[1673319243079,0.60395812,17199.0,17196.0,1.34924131]
[1673319243316,0.60395812,17199.0,17196.0,1.02276393]
[1673319243654,0.60395812,17199.0,17196.0,1.27560594]
[1673319243847,0.60395812,17199.0,17196.0,1.03492805]
[1673319244109,0.60395812,17199.0,17196.0,1.3880861]
[1673319244366,0.34315999,17199.0,17196.0,1.3880861]
[1673319244616,0.34315999,17199.0,17197.0,0.17397122]
[1673319245662,0.34315999,17199.0,17197.0,0.17497122]
[1673319245912,0.34315999,17199.0,17197.0,0.1748786]
[1673319247452,0.60395812,17199.0,17197.0,0.1748786]
[1673319247741,0.60395812,17199.0,17197.0,0.001]
[1673319248287,0.2,17198.0,17197.0,0.001]
[1673319248534,0.43445812,17199.0,17197.0,0.001]
[1673319248535,0.17365999,17199.0,17197.0,0.001]
[1673319249087,0.43445812,17199.0,17197.0,0.001]
[1673319250121,0.43445812,17199.0,17196.0,0.86095683]
[1673319250341,0.43445812,17199.0,17197.0,0.003]
[1673319250851,0.17365999,17199.0,17196.0,1.20889909]
[1673319251113,0.17365999,17199.0,17197.0,0.26095683]
[1673319252111,0.17365999,17199.0,17197.0,0.58844756]
[1673319252363,0.17365999,17199.0,17197.0,0.26095683]
[1673319252874,0.17365999,17199.0,17196.0,1.20889909]
[1673319253124,0.17365999,17199.0,17197.0,0.003]
[1673319253345,0.43445812,17199.0,17197.0,0.26395683]
[1673319253628,0.43445812,17199.0,17197.0,0.26095683]
[1673319253866,0.17365999,17199.0,17197.0,0.58897844]
[1673319254343,0.17365999,17199.0,17197.0,0.26095683]
[1673319254902,0.17365999,17199.0,17197.0,0.26395683]
[1673319255143,0.43445812,17199.0,17197.0,0.003]
[1673319255875,0.43445812,17199.0,17197.0,0.17738617]
[1673319256706,0.362152,17198.0,17197.0,0.17738617]
[1673319256969,0.17365999,17198.0,17197.0,0.003]
[1673319257477,0.17365999,17198.0,17196.0,1.035343]
[1673319257727,0.17365999,17198.0,17197.0,0.003]
[1673319259032,0.79661012,17198.0,17197.0,0.003]
[1673319259268,0.9703839,17198.0,17197.0,0.003]
[1673319259519,1.1703839,17198.0,17197.0,0.003]
[1673319260050,1.1703839,17198.0,17195.0,0.77614658]
[1673319260330,0.8082319,17198.0,17197.0,0.003]
[1673319261101,1.1703839,17198.0,17195.0,0.77623678]
[1673319261353,0.8082319,17198.0,17195.0,0.577343]
[1673319261661,0.37418493,17197.0,17195.0,0.577343]
[1673319262115,0.2,17197.0,17195.0,0.435343]
[1673319262400,0.2,17197.0,17195.0,0.75929659]
[1673319262597,0.63498306,17198.0,17196.0,0.17438617]
[1673319263157,0.37418493,17198.0,17196.0,0.17438617]
[1673319263410,0.63498306,17198.0,17196.0,0.17438617]
[1673319263667,0.37418493,17198.0,17196.0,0.17438617]
[1673319263914,0.37418493,17198.0,17196.0,0.17738617]
[1673319264159,0.37418493,17198.0,17196.0,0.77738617]
[1673319265197,0.17418493,17198.0,17196.0,0.77738617]
[1673319265461,0.17418493,17198.0,17196.0,1.038343]
[1673319265716,0.43498306,17199.0,17196.0,1.038343]
[1673319265936,0.43498306,17199.0,17196.0,1.61673721]
[1673319266401,0.43498306,17199.0,17196.0,1.37905932]
[1673319266642,0.78241683,17199.0,17196.0,1.37623287]
[1673319266882,0.17418493,17198.0,17196.0,1.038343]
[1673319268138,0.34278493,17198.0,17196.0,0.77738617]
[1673319268393,0.34278493,17198.0,17196.0,0.77438617]
[1673319268643,0.34278493,17198.0,17196.0,0.77738617]
[1673319269424,0.60358306,17198.0,17196.0,0.77738617]
[1673319270197,0.60358306,17198.0,17196.0,0.603]
[1673319271451,0.60358306,17198.0,17196.0,0.003]
[1673319271711,0.95101683,17198.0,17196.0,0.003]
[1673319271959,0.17418493,17197.0,17196.0,0.003]
[1673319272216,0.80358306,17198.0,17196.0,0.603]
[1673319272462,0.54278493,17198.0,17196.0,0.77738617]
[1673319272715,0.54278493,17198.0,17196.0,0.77438617]
[1673319272972,0.54278493,17198.0,17196.0,0.77738617]
[1673319273215,0.54278493,17198.0,17196.0,1.038343]
[1673319273469,0.3686,17198.0,17196.0,0.438343]
[1673319273723,0.80358306,17198.0,17196.0,0.003]
[1673319273992,0.80358306,17198.0,17195.0,0.435343]
[1673319274240,0.17418493,17197.0,17196.0,0.003]
[1673319275007,0.17418493,17197.0,17195.0,0.17424373]
[1673319275274,0.17418493,17197.0,17195.0,0.24524373]
[1673319275537,0.17418493,17197.0,17195.0,0.17424373]
[1673319275744,0.17418493,17197.0,17196.0,0.003]
[1673319275994,0.43498306,17197.0,17196.0,0.00285756]
[1673319276515,0.63498306,17197.0,17196.0,0.00271511]
[1673319276828,0.8082319,17197.0,17196.0,0.00271511]
[1673319277022,0.8082319,17197.0,17196.0,0.00257267]
[1673319277291,0.8082319,17197.0,17194.0,0.6]
[1673319277292,0.53626217,17197.0,17194.0,0.6]
[1673319277564,0.17411017,17197.0,17196.0,0.001]
[1673319278327,0.17411017,17197.0,17194.0,0.6]
[1673319279129,0.17411017,17197.0,17196.0,0.001]
[1673319279892,0.17411017,17197.0,17194.0,0.6]
[1673319280161,0.17411017,17197.0,17194.0,0.671]
[1673319280425,0.17411017,17197.0,17194.0,0.6]
[1673319281458,0.17411017,17197.0,17194.0,0.671]
[1673319286288,0.43517505,17197.0,17194.0,0.671]
[1673319288072,0.60417505,17197.0,17194.0,0.671]
[1673319288326,0.562152,17196.0,17194.0,0.671]